Workbook

Sheet Računalo za posojilo
B2: ŠTUDENTSKO POSOJILO | G2: 50,000 € | L2: 2011-05-10
B3: RAČUNALO
B5: Priporočamo, da skupni znesek za mesečno odplačevanje študentskega posojila ne presega 8 % vaše prve letne plače.
C7: Vaša trenutna kombinirana mesečna plača je: | F7: =ŠtudentskaPosojila[[#Totals],[Trenutna mesečna plača]] -> 328.59 € | I7: Razporeditev vaše kombinirane mesečne plače je: | M7: =ŠtudentskaPosojila[[#Totals],[Razpored plačila]] -> 328.59 €
C8: Odstotek mesečnih prihodkov: | F8: =ŠtudentskaPosojila[[#Totals],[Trenutna mesečna plača]]/PredvidenaMesečnaPlača -> 7.89% | I8: Odstotek mesečnih prihodkov: | M8: =ŠtudentskaPosojila[[#Totals],[Razpored plačila]]/PredvidenaMesečnaPlača -> 7.89%
C11: SPLOŠNE PODROBNOSTI POSOJILA | G11: PODROBNOSTI ODPLAČEVANJA POSOJILA | J11: PODROBNOSTI PLAČE
C12: Št. posojila | D12: Upnik | E12: Znesek posojila | F12: Letna obrestna mera | G12: Začetni datum | H12: Trajanje (v letih) | I12: Končni datum | J12: Trenutna mesečna plača | K12: Skupna obrestna mera | L12: Razpored plačila | M12: Letna plača
C13: 10998M88 | D13: Upnik 1 | E13: 10,000.00 € | F13: 5.00% | G13: 2011-04-01 | H13: 10 | I13: =IF(AND(ŠtudentskaPosojila[[#This Row],[Začetni datum]]>0,ŠtudentskaPosojila[[#This Row],[Trajanje (v letih)]]>0),EDATE(ŠtudentskaPosojila[[#This Row],[Začetni datum]],ŠtudentskaPosojila[[#This Row],[Trajanje (v letih)]]*12),"") -> 2021-04-01 | J13: =IF(AND(ZačetekPosojilaDanes,COUNT(ŠtudentskaPosojila[[#This Row],[Znesek posojila]]:ŠtudentskaPosojila[[#This Row],[Trajanje (v letih)]])=4,ŠtudentskaPosojila[[#This Row],[Začetni datum]]<TODAY()),PMT(ŠtudentskaPosojila[[#This Row],[Letna obrestna mera]]/12,ŠtudentskaPosojila[[#This Row],[Trajanje (v letih)]]*12,-ŠtudentskaPosojila[[#This Row],[Znesek posojila]],0,0),"") -> 106.07 € | K13: =IFERROR((ŠtudentskaPosojila[[#This Row],[Razpored plačila]]*(ŠtudentskaPosojila[[#This Row],[Trajanje (v letih)]]*12))-ŠtudentskaPosojila[[#This Row],[Znesek posojila]],"") -> 2,727.86 € | L13: =IF(COUNTA(ŠtudentskaPosojila[[#This Row],[Znesek posojila]]:ŠtudentskaPosojila[[#This Row],[Trajanje (v letih)]])<>4,"",PMT(ŠtudentskaPosojila[[#This Row],[Letna obrestna mera]]/12,ŠtudentskaPosojila[[#This Row],[Trajanje (v letih)]]*12,-ŠtudentskaPosojila[[#This Row],[Znesek posojila]],0,0)) -> 106.07 € | M13: =IFERROR(ŠtudentskaPosojila[[#This Row],[Razpored plačila]]*12,"") -> 1,272.79 €
C14: 20987N87 | D14: Upnik 2 | E14: 8,000.00 € | F14: 5.00% | G14: 2011-05-01 | H14: 10 | I14: =IF(AND(ŠtudentskaPosojila[[#This Row],[Začetni datum]]>0,ŠtudentskaPosojila[[#This Row],[Trajanje (v letih)]]>0),EDATE(ŠtudentskaPosojila[[#This Row],[Začetni datum]],ŠtudentskaPosojila[[#This Row],[Trajanje (v letih)]]*12),"") -> 2021-05-01 | J14: =IF(AND(ZačetekPosojilaDanes,COUNT(ŠtudentskaPosojila[[#This Row],[Znesek posojila]]:ŠtudentskaPosojila[[#This Row],[Trajanje (v letih)]])=4,ŠtudentskaPosojila[[#This Row],[Začetni datum]]<TODAY()),PMT(ŠtudentskaPosojila[[#This Row],[Letna obrestna mera]]/12,ŠtudentskaPosojila[[#This Row],[Trajanje (v letih)]]*12,-ŠtudentskaPosojila[[#This Row],[Znesek posojila]],0,0),"") -> 84.85 € | K14: =IFERROR((ŠtudentskaPosojila[[#This Row],[Razpored plačila]]*(ŠtudentskaPosojila[[#This Row],[Trajanje (v letih)]]*12))-ŠtudentskaPosojila[[#This Row],[Znesek posojila]],"") -> 2,182.29 € | L14: =IF(COUNTA(ŠtudentskaPosojila[[#This Row],[Znesek posojila]]:ŠtudentskaPosojila[[#This Row],[Trajanje (v letih)]])<>4,"",PMT(ŠtudentskaPosojila[[#This Row],[Letna obrestna mera]]/12,ŠtudentskaPosojila[[#This Row],[Trajanje (v letih)]]*12,-ŠtudentskaPosojila[[#This Row],[Znesek posojila]],0,0)) -> 84.85 € | M14: =IFERROR(ŠtudentskaPosojila[[#This Row],[Razpored plačila]]*12,"") -> 1,018.23 €
C15: 36785LM | D15: Upnik 3 | E15: 6,000.00 € | F15: 4.50% | G15: 2012-03-01 | H15: 10 | I15: =IF(AND(ŠtudentskaPosojila[[#This Row],[Začetni datum]]>0,ŠtudentskaPosojila[[#This Row],[Trajanje (v letih)]]>0),EDATE(ŠtudentskaPosojila[[#This Row],[Začetni datum]],ŠtudentskaPosojila[[#This Row],[Trajanje (v letih)]]*12),"") -> 2022-03-01 | J15: =IF(AND(ZačetekPosojilaDanes,COUNT(ŠtudentskaPosojila[[#This Row],[Znesek posojila]]:ŠtudentskaPosojila[[#This Row],[Trajanje (v letih)]])=4,ŠtudentskaPosojila[[#This Row],[Začetni datum]]<TODAY()),PMT(ŠtudentskaPosojila[[#This Row],[Letna obrestna mera]]/12,ŠtudentskaPosojila[[#This Row],[Trajanje (v letih)]]*12,-ŠtudentskaPosojila[[#This Row],[Znesek posojila]],0,0),"") -> 62.18 € | K15: =IFERROR((ŠtudentskaPosojila[[#This Row],[Razpored plačila]]*(ŠtudentskaPosojila[[#This Row],[Trajanje (v letih)]]*12))-ŠtudentskaPosojila[[#This Row],[Znesek posojila]],"") -> 1,461.97 € | L15: =IF(COUNTA(ŠtudentskaPosojila[[#This Row],[Znesek posojila]]:ŠtudentskaPosojila[[#This Row],[Trajanje (v letih)]])<>4,"",PMT(ŠtudentskaPosojila[[#This Row],[Letna obrestna mera]]/12,ŠtudentskaPosojila[[#This Row],[Trajanje (v letih)]]*12,-ŠtudentskaPosojila[[#This Row],[Znesek posojila]],0,0)) -> 62.18 € | M15: =IFERROR(ŠtudentskaPosojila[[#This Row],[Razpored plačila]]*12,"") -> 746.20 €
C16: 765R43 | D16: Upnik 4 | E16: 4,000.00 € | F16: 5.00% | G16: 2012-05-01 | H16: 5 | I16: =IF(AND(ŠtudentskaPosojila[[#This Row],[Začetni datum]]>0,ŠtudentskaPosojila[[#This Row],[Trajanje (v letih)]]>0),EDATE(ŠtudentskaPosojila[[#This Row],[Začetni datum]],ŠtudentskaPosojila[[#This Row],[Trajanje (v letih)]]*12),"") -> 2017-05-01 | J16: =IF(AND(ZačetekPosojilaDanes,COUNT(ŠtudentskaPosojila[[#This Row],[Znesek posojila]]:ŠtudentskaPosojila[[#This Row],[Trajanje (v letih)]])=4,ŠtudentskaPosojila[[#This Row],[Začetni datum]]<TODAY()),PMT(ŠtudentskaPosojila[[#This Row],[Letna obrestna mera]]/12,ŠtudentskaPosojila[[#This Row],[Trajanje (v letih)]]*12,-ŠtudentskaPosojila[[#This Row],[Znesek posojila]],0,0),"") -> 75.48 € | K16: =IFERROR((ŠtudentskaPosojila[[#This Row],[Razpored plačila]]*(ŠtudentskaPosojila[[#This Row],[Trajanje (v letih)]]*12))-ŠtudentskaPosojila[[#This Row],[Znesek posojila]],"") -> 529.10 € | L16: =IF(COUNTA(ŠtudentskaPosojila[[#This Row],[Znesek posojila]]:ŠtudentskaPosojila[[#This Row],[Trajanje (v letih)]])<>4,"",PMT(ŠtudentskaPosojila[[#This Row],[Letna obrestna mera]]/12,ŠtudentskaPosojila[[#This Row],[Trajanje (v letih)]]*12,-ŠtudentskaPosojila[[#This Row],[Znesek posojila]],0,0)) -> 75.48 € | M16: =IFERROR(ŠtudentskaPosojila[[#This Row],[Razpored plačila]]*12,"") -> 905.82 €
C17: Vsota | E17: =SUBTOTAL(109,ŠtudentskaPosojila[Znesek posojila]) -> 28,000.00 € | J17: =SUBTOTAL(109,ŠtudentskaPosojila[Trenutna mesečna plača]) -> 328.59 € | K17: =SUBTOTAL(109,ŠtudentskaPosojila[Skupna obrestna mera]) -> 6,901.21 € | L17: =SUBTOTAL(109,ŠtudentskaPosojila[Razpored plačila]) -> 328.59 € | M17: =SUBTOTAL(109,ŠtudentskaPosojila[Letna plača]) -> 3,943.03 €
C18: Povprečja | E18: =AVERAGE(ŠtudentskaPosojila[Znesek posojila]) -> 7,000.00 € | F18: =AVERAGE(ŠtudentskaPosojila[Letna obrestna mera]) -> 4.88% | K18: =AVERAGE(ŠtudentskaPosojila[Skupna obrestna mera]) -> 1,725.30 € | M18: =AVERAGE(ŠtudentskaPosojila[Letna plača]) -> 985.76 €
K20: Konsolidiran skupen znesek za odplačevanje posojila: | M20: =ŠtudentskaPosojila[[#Totals],[Znesek posojila]]+ŠtudentskaPosojila[[#Totals],[Skupna obrestna mera]] -> 34,901.21 €
K22: Predviden mesečni prihodek po diplomi: | M22: =(PredvidenaLetnaPlača/12) -> 4,166.67 €
